fUSD/lending_fUSD_20260208
["ID","MTS","AMOUNT","RATE_DAILY","PERIOD"]
[404788021,1770557450096,-205.392935,0.00039726,120]
[404788022,1770557450105,-201.315595,0.00039726,120]
[404788023,1770557450115,-205.392935,0.00039726,120]
[404788024,1770557450124,-201.315595,0.00039726,120]
[404788025,1770557450134,-205.392935,0.00039726,120]
[404788026,1770557450143,-201.315595,0.00039726,120]
[404788027,1770557450152,-201.315595,0.00039726,120]
[404788028,1770557450161,-205.392935,0.00039726,120]
[404788029,1770557450170,-205.392935,0.00039726,120]
[404788030,1770557450180,-201.315595,0.00039726,120]
[404788031,1770557450189,-205.392943,0.00039726,120]
[404788032,1770557450198,-201.315595,0.00039726,120]
[404788033,1770557450207,-201.315595,0.00039726,120]
[404788034,1770557450217,-201.315595,0.00039726,120]
[404788035,1770557450226,-201.315595,0.00039726,120]
[404788036,1770557450235,-201.315595,0.00039726,120]
[404788037,1770557450244,-201.315595,0.00039726,120]
[404788038,1770557450254,-201.315597,0.00039726,120]
[404788039,1770557450263,-154.96586,0.00039726,120]
[404788040,1770557450272,-162.013874,0.00039726,120]
[404788041,1770557450281,-71.65190553,0.00039726,120]
[404788042,1770557450293,-170.33264347,0.00039726,120]
[404788043,1770557450302,-241.984549,0.00039726,120]
[404788044,1770557450311,-241.984549,0.00039726,120]
[404788045,1770557450320,-7.23656299,0.00039726,120]
[404788046,1770557450332,-234.74798601,0.00039726,120]
[404788047,1770557450342,-241.984549,0.00039726,120]
[404788048,1770557450351,-147.41214857,0.00039726,120]
[404788049,1770557450362,-94.57239443,0.00039726,120]
[404788050,1770557450371,-153.081172,0.00039726,120]
[404788051,1770557450380,-178.341464,0.00039726,120]
[404788052,1770557450390,-151.0,0.00039726,120]
[404788053,1770557450400,-201.042847,0.00039726,120]
[404788054,1770557450409,-151.0,0.00039726,120]
[404788055,1770557450418,-151.0,0.00039726,120]
[404788056,1770557450426,-151.0,0.00039726,120]
[404788057,1770557450436,-151.0,0.00039726,120]
[404788058,1770557450445,-151.0,0.00039726,120]
[404788059,1770557450454,-275.258423,0.00039726,120]
[404788060,1770557450466,-223.634244,0.00039726,120]
[404788061,1770557450475,-174.883042,0.00039726,120]
[404788062,1770557450484,-174.883042,0.00039726,120]
[404788063,1770557450494,-123.66240285,0.00039726,120]
[404788064,1770557450506,-51.22063915,0.00039726,120]
[404788065,1770557450517,-174.883042,0.00039726,120]
[404788066,1770557450526,-856.709532,0.00039726,120]
[404788067,1770557450536,-174.883042,0.00039726,120]
[404788068,1770557450545,-856.709532,0.00039726,120]
[404788069,1770557450554,-856.709532,0.00039726,120]
[404788070,1770557450563,-174.883042,0.00039726,120]
[404788071,1770557450572,-174.883042,0.00039726,120]
[404788072,1770557450581,-856.709532,0.00039726,120]
[404788073,1770557450591,-174.883042,0.00039726,120]
[404788074,1770557450600,-856.709532,0.00039726,120]
[404788075,1770557450609,-174.883042,0.00039726,120]
[404788076,1770557450618,-710.92307142,0.00039726,120]
[404788090,1770557612113,416.28,0.000356,30]
[404788106,1770557802502,374.65,0.000356,30]
[404788107,1770557814063,250.0,0.00015,2]
[404788108,1770557815144,300.0,0.00017,2]
[404788109,1770557816217,350.0,0.00019,2]
[404788110,1770557993890,337.19,0.000356,30]
[404788111,1770558052408,999.02,0.00029894,120]
[404788135,1770558184618,303.47,0.000356,30]
[404788137,1770558288093,166.66,0.00027442,30]
[404788138,1770558288289,166.66,0.00028019,30]
[404788139,1770558288491,166.66,0.00028597,30]
[404788140,1770558288691,166.66,0.00029175,30]
[404788141,1770558288907,166.66,0.00029753,30]
[404788142,1770558289343,166.66,0.0003033,30]
[404788143,1770558298097,150.4,0.00030137,30]
[404788147,1770558374801,273.12,0.000356,30]
[404788148,1770558452654,2000.0,0.00035,30]
[404788162,1770558549115,-4800.0,0.0002,2]
[404788163,1770558549136,-543.679712,0.00022,2]
[404788164,1770558566377,245.81,0.000356,30]
[404788185,1770558631907,-1460.85180206,0.00022,2]
[404788187,1770558631917,-900.0,0.000266,9]
[404788189,1770558631926,-1200.0,0.00026699,2]
[404788190,1770558631936,-1800.0,0.000267,9]
[404788191,1770558631946,-1870.79790705,0.000268,9]
[404788192,1770558631959,-829.20209295,0.000268,9]
[404788193,1770558631970,-143.90370741,0.000269,9]
[404788194,1770558631983,-1518.79195812,0.000269,9]
[404788195,1770558631994,-950.69681676,0.000269,9]
[404788196,1770558632005,-577.46018693,0.000269,9]
[404788197,1770558632022,-409.14733078,0.000269,9]
[404788198,1770558632031,-579.13469607,0.0002727,2]
[404788199,1770558632060,-420.86530393,0.0002727,2]
[404788200,1770558632070,-813.41396486,0.000274,2]
[404788201,1770558632079,-175.5376045,0.000274,2]
[404788202,1770558632088,-586.0310765,0.000274,2]
[404788203,1770558632098,-5212.34485021,0.000274,2]
[404788204,1770558632109,-698.60816711,0.000274,2]
[404788205,1770558632121,-1326.4511873,0.000274,2]
[404788225,1770558638100,-500.082,0.000274,2]
[404788226,1770558638112,-1349.7082906,0.000274,2]
[404788227,1770558638162,-670.41024,0.000274,2]
[404788228,1770558638174,-956.79071888,0.000274,2]
[404788238,1770558640089,-576.55275145,0.000274,2]
[404788239,1770558640311,-4579.29158829,0.000274,2]
[404788276,1770558643914,-4264.39033307,0.000274,2]
[404788277,1770558643924,-158.82286786,0.00027481,2]
[404788278,1770558643933,-3024.72948525,0.00027481,2]
[404788279,1770558643943,-217.23611672,0.00027481,2]
[404788280,1770558643952,-413.34603145,0.00027499,2]
[404788281,1770558643961,-360797.77178873,0.000275,2]
[404788282,1770558644998,-1700142.66865815,0.000275,2]
[404788300,1770558646100,-273.0,0.000275,2]
[404788332,1770558749163,801.01,0.00027499,30]
[404788333,1770558749390,801.01,0.00027499,30]
[404788334,1770558749614,801.01,0.00027499,30]
[404788335,1770558749876,801.01,0.00027499,30]
[404788336,1770558750101,801.01,0.00027499,30]
[404788337,1770558750332,801.01,0.00027499,30]
[404788338,1770558750558,801.01,0.00027499,30]
[404788339,1770558750787,801.01,0.00027499,30]
[404788340,1770558751010,801.01,0.00027499,30]
[404788341,1770558751252,801.01,0.00027499,30]
[404788342,1770558751493,801.01,0.00027499,30]
[404788343,1770558751761,801.01,0.00027499,30]
[404788344,1770558752016,801.01,0.00027499,30]
[404788345,1770558752257,801.01,0.00027499,30]
[404788346,1770558752478,801.01,0.00030781,30]
[404788347,1770558758316,221.23,0.000356,30]
[404788371,1770558950340,199.11,0.000356,30]
[404788374,1770558972945,400.52893602,0.00035616,30]
[404788403,1770559324666,179.19,0.000356,30]
[404788420,1770559516030,161.28,0.000356,30]
[404788450,1770559618495,250.0,0.00015,2]
[404788451,1770559623086,550.0,0.000356,30]
[404788453,1770559634478,500.0,0.00035616,30]
[404788454,1770559650643,500.0,0.00035616,30]
[404788455,1770559687385,398.0,0.00035616,30]
[404788456,1770559707523,150.0,0.000356,30]
[404788470,1770559832069,-326.71333278,0.000264,2]
[404788471,1770559832240,-67.47767358,0.000264,2]
[404788472,1770559832252,-10627.9035381,0.000264,2]
[404788473,1770559832299,-8590.24350942,0.000264,2]
[404788489,1770559832521,-78.60608284,0.000264,2]
[404788493,1770559838258,-507.42499366,0.000264,2]
[404788494,1770559838268,-273.65500634,0.000264,2]
[404788495,1770559838316,-2448.60153034,0.000264,2]
[404788496,1770559838328,-250.0,0.00026445,2]
[404788497,1770559838338,-3255.0,0.00026467,2]
[404788498,1770559838349,-6585.0,0.00026467,2]
[404788499,1770559838359,-2447.0,0.00026467,2]
[404788500,1770559838370,-5659.4433585,0.000265,2]
[404788501,1770559838389,-91699.99999997,0.000265,2]
[404788505,1770559840242,-1113.68249944,0.000265,2]
[404788506,1770559840359,-665.83917215,0.000265,2]
[404788507,1770559840371,-294.170603,0.000265,2]
[404788508,1770559840382,-442.0322645,0.000265,2]
[404788509,1770559840393,-332.40772,0.000265,2]
[404788511,1770559840636,-1345.570003,0.000265,2]
[404788532,1770559845420,-175.5376045,0.000264,2]
[404788533,1770559845429,-77759.63685728,0.000265,2]
[404788534,1770559845477,-1961.12993978,0.000265,2]
[404788536,1770559846086,-250.25623569,0.000265,2]
[404788537,1770559846201,-536.07,0.000265,2]
[404788538,1770559846260,-999.0,0.000265,2]
[404788570,1770559898095,150.0,0.000356,30]
[404788571,1770559925368,218.86259302,0.00028035,30]
[404788572,1770559938689,200.0,0.00019082,2]
[404788573,1770560030048,251.0,0.000356,48]
[404788576,1770560089010,150.0,0.000356,30]
[404788581,1770560181767,550.0,0.0002,2]
[404788582,1770560181792,252.29186847,0.0002,2]
[404788586,1770560277634,150.0,0.000356,30]
[404788591,1770560460269,166.6,0.00035616,30]
[404788592,1770560466541,150.0,0.000356,30]
[404788599,1770560618194,165.85,0.00016712,2]
[404788600,1770560655948,150.0,0.000356,30]
[404788606,1770560712962,483.87803134,0.00018312,2]
[404788607,1770560713230,97.98010019,0.0001877,2]
[404788608,1770560713259,385.89793115,0.0001877,2]
[404788612,1770560840246,150.4,0.00030137,30]
[404788613,1770560845879,150.0,0.000356,30]
[404788621,1770561012317,483.87803131,0.00018312,2]
[404788635,1770561031272,-500.0,0.00019227,7]
[404788637,1770561031286,-483.87803134,0.00019227,2]
[404788638,1770561031297,-250.0,0.00019456,2]
[404788639,1770561031307,-483.87803134,0.00019685,2]
[404788640,1770561031316,-300.0,0.00019989,2]
[404788641,1770561031327,-11135.55232166,0.0001999,2]
[404788642,1770561031339,-1305.0,0.0001999,2]
[404788643,1770561031352,-871.0,0.0001999,2]
[404788644,1770561031363,-832.33893487,0.0001999,2]
[404788645,1770561031376,-495.74682973,0.0001999,2]
[404788646,1770561031443,-1164.57560884,0.0001999,2]
[404788650,1770561033622,150.0,0.000356,30]
[404788652,1770561037440,-6728.37818209,0.0001999,2]
[404788654,1770561037556,-3114.58838247,0.0001999,2]
[404788656,1770561037568,-694.46353124,0.0001999,2]
[404788687,1770561039415,-704.57434834,0.0001999,2]
[404788688,1770561039431,-5267.99253495,0.0001999,2]
[404788689,1770561039440,-483.87803134,0.00020143,2]
[404788690,1770561039451,-250.0,0.0002115,2]
[404788691,1770561039460,-420.0,0.00021766,2]
[404788692,1770561039470,-1843.43,0.00022486,2]
[404788693,1770561039479,-210.59685854,0.00023701,2]
[404788694,1770561039490,-269.40314146,0.00023701,2]
[404788695,1770561039499,-127.56991647,0.000241,2]
[404788696,1770561039509,-6250.50891526,0.000241,2]
[404788697,1770561039610,-17398.49448457,0.000241,2]
[404788698,1770561039619,-3038.59,0.00025357,2]
[404788699,1770561039630,-200.0,0.00025566,2]
[404788700,1770561039639,-400.0,0.000256,9]
[404788701,1770561039649,-900.0,0.000257,9]
[404788702,1770561039658,-1400.0,0.000258,9]
[404788703,1770561039667,-1900.0,0.000259,9]
[404788704,1770561039677,-262.79400424,0.000259,2]
[404788705,1770561039685,-390.68738432,0.000259,2]
[404788706,1770561039695,-19641.35133101,0.00025919,2]
[404788707,1770561039704,-433.39536545,0.00025995,2]
[404788708,1770561039713,-5000.0,0.00025995,2]
[404788709,1770561039722,-289.34222201,0.00025999,2]
[404788710,1770561039732,-181.24306974,0.00026,2]
[404788711,1770561039741,-3531.2383862,0.00026,2]
[404788712,1770561039750,-117667.93183898,0.00026,2]
[404788713,1770561039765,-4294.05191312,0.00026,2]
[404788715,1770561039789,-462.58357301,0.00026,2]
[404788757,1770561044101,-403.0,0.00024082,2]
[404788758,1770561044111,-417.8424934,0.00026,2]
[404788759,1770561044123,-10243.44456338,0.00026,2]
[404788760,1770561044135,-438.57386248,0.00026,2]
[404788761,1770561044147,-712.83,0.00026,2]
[404788763,1770561045313,-2226.2361761,0.00026,2]
[404788764,1770561045325,-5490.53864023,0.00026,2]
[404788765,1770561045375,-338.8052492,0.00026,2]
[404788766,1770561045386,-676.87939562,0.00026,2]
[404788799,1770561070172,1004.7195349,0.00035616,30]
[404788800,1770561071708,286.05470006,0.00028499,30]
[404788803,1770561074632,357.53939784,0.00028499,120]
[404788804,1770561152561,433.80662,0.0003313,39]
[404788805,1770561152641,433.80662,0.0003313,39]
[404788806,1770561152704,433.80662,0.0003313,39]
[404788807,1770561152783,433.80662,0.0003313,39]
[404788808,1770561152849,433.80662,0.0003333,41]
[404788809,1770561152919,433.80662,0.0003333,41]
[404788812,1770561220933,251.52,0.000356,30]
[404788814,1770561248406,151.0,0.00033416,31]
[404788815,1770561250381,151.0,0.00033416,31]
[404788816,1770561311075,479.76195258,0.00018311,2]
[404788817,1770561311921,479.76195258,0.00018768,2]
[404788819,1770561420834,250.0,0.00015,2]
[404788820,1770561421974,300.0,0.00017,2]
[404788829,1770561806757,320.01,0.00027494,120]
[404788830,1770561806984,320.01,0.00030549,120]
[404788831,1770561807194,320.01,0.00033604,120]
[404788832,1770561967951,500.0,0.00035616,30]
[404788835,1770562148982,151.0,0.00034595,31]
[404788836,1770562150635,151.0,0.00034595,31]
[404788837,1770562207768,-479.76195258,0.00019226,2]
[404788838,1770562207794,-121.23804742,0.00019684,2]
[404788846,1770562231571,-298.1025574,0.00019684,2]
[404788847,1770562231586,-60.42134776,0.00019684,2]
[404788848,1770562231596,-347.57854223,0.00020142,2]
[404788849,1770562231625,-132.18341035,0.00020142,2]
[404788850,1770562231635,-350.0,0.00023479,2]
[404788851,1770562231644,-300.0,0.00023799,2]
[404788852,1770562231654,-1200.0,0.00023799,2]
[404788853,1770562231663,-15406.34451359,0.000238,2]
[404788854,1770562231675,-306.0,0.000238,2]
[404788855,1770562231686,-549.90444418,0.000238,2]
[404788856,1770562231704,-753.94627524,0.000238,2]
[404788857,1770562231715,-1337.70986208,0.000238,2]
[404788858,1770562231726,-1257.02204758,0.000238,2]
[404788949,1770562237539,-36549.32285733,0.000238,2]
[404788950,1770562237549,-1479.37248581,0.000241,2]
[404788951,1770562237558,-1929.0612353,0.000241,2]
[404788952,1770562237568,-320.01,0.00024439,2]
[404788953,1770562237577,-200.0,0.00024616,2]
[404788954,1770562237593,-150.0,0.00024616,2]
[404788955,1770562237607,-500.0,0.00024616,2]
[404788956,1770562237616,-150.0,0.00024617,2]
[404788957,1770562237625,-474.0,0.00024617,2]
[404788958,1770562237635,-238.23023103,0.00024618,2]
[404788959,1770562237644,-150.0,0.00024618,2]
[404788960,1770562237654,-150.14810595,0.00024618,2]
[404788961,1770562237664,-150.38251464,0.00024618,2]
[404788962,1770562237674,-150.0,0.00024618,2]
[404788963,1770562237684,-150.0,0.00024618,2]
[404788964,1770562237694,-150.0,0.00024618,2]
[404788965,1770562237703,-150.0,0.00024618,2]
[404788966,1770562237712,-152.34,0.00024658,2]
[404788967,1770562237722,-1000.0,0.00024658,2]
[404788968,1770562237732,-150.0,0.00024671,2]
[404788969,1770562237741,-500.0,0.00024671,2]
[404788970,1770562237751,-474.0,0.00024672,2]
[404788971,1770562237760,-150.0,0.00024673,2]
[404788972,1770562237770,-150.0,0.00024673,2]
[404788973,1770562237780,-150.0,0.00024673,2]
[404788974,1770562237790,-150.0,0.00024726,2]
[404788975,1770562237800,-309.390678,0.00024726,2]
[404788976,1770562237809,-474.0,0.00024727,2]
[404788977,1770562237819,-200.0,0.00024728,2]
[404788978,1770562237828,-201.00110128,0.00024728,2]
[404788980,1770562237837,-200.0,0.00024728,2]
[404788982,1770562237847,-187.62081611,0.0002478,2]
[404788983,1770562237856,-474.0,0.00024781,2]
[404788984,1770562237866,-9801.15185994,0.00024791,2]
[404788985,1770562237875,-17235.96811452,0.00024793,2]
[404788986,1770562237888,-799.11264715,0.00024793,2]
[404788988,1770562237900,-11079.92670584,0.00024793,2]
[404788990,1770562237911,-1072.40294018,0.00024793,2]
[404788992,1770562237923,-3216.33783133,0.00024793,2]
[404788994,1770562237932,-474.0,0.00024836,2]
[404788996,1770562237942,-2103.66,0.00024878,2]
[404788998,1770562237952,-36190.3,0.00024878,2]
[404788999,1770562237966,-150.99,0.00024878,2]
[404789000,1770562237976,-515.02,0.00024878,2]
[404789001,1770562237985,-1181.21,0.00024878,2]
[404789002,1770562237995,-6484.12,0.00024878,2]
[404789003,1770562238010,-299.99,0.00024878,7]
[404789004,1770562238019,-3701.78,0.00024878,2]
[404789005,1770562238029,-1467.21,0.00024878,2]
[404789006,1770562238039,-1431.43794938,0.00024887,2]
[404789007,1770562238049,-1431.43794938,0.00024887,2]
[404789008,1770562238064,-1431.43794938,0.00024887,2]
[404789009,1770562238074,-1431.43794938,0.00024887,2]
[404789010,1770562238084,-1431.43794938,0.00024887,2]
[404789011,1770562238095,-1431.43794938,0.00024887,2]
[404789012,1770562238104,-1431.43794938,0.00024887,2]
[404789013,1770562238116,-1431.43794938,0.00024887,2]
[404789014,1770562238126,-1431.43794938,0.00024887,2]
[404789015,1770562238135,-1431.43794938,0.00024887,2]
[404789016,1770562238145,-1431.43794938,0.00024887,2]
[404789017,1770562238154,-1431.43794938,0.00024887,2]
[404789018,1770562238167,-379.97390268,0.00024887,2]
[404789019,1770562238183,-1051.4640467,0.00024887,2]
[404789020,1770562238192,-1431.43794938,0.00024887,2]
[404789021,1770562238201,-1431.43794938,0.00024887,2]
[404789022,1770562238215,-1431.43794938,0.00024887,2]
[404789023,1770562238225,-1431.43794938,0.00024887,2]
[404789024,1770562238235,-1431.43794938,0.00024887,2]
[404789025,1770562238245,-1431.43794938,0.00024887,2]
[404789026,1770562238255,-1431.43794938,0.00024887,2]
[404789027,1770562238264,-1431.43794938,0.00024887,2]
[404789028,1770562238275,-1431.43794938,0.00024887,2]
[404789029,1770562238284,-1431.43794938,0.00024887,2]
[404789030,1770562238294,-1431.43794938,0.00024887,2]
[404789031,1770562238304,-1431.43794938,0.00024887,2]
[404789032,1770562238314,-1431.43794938,0.00024887,2]
[404789033,1770562238324,-1431.43794938,0.00024887,2]
[404789034,1770562238333,-1431.43794938,0.00024887,2]
[404789035,1770562238344,-1431.43794938,0.00024887,2]
[404789036,1770562238354,-1431.43794938,0.00024887,2]
[404789037,1770562238364,-1431.43794938,0.00024887,2]
[404789038,1770562238373,-1431.43794938,0.00024887,2]
[404789039,1770562238383,-1431.43794938,0.00024887,2]
[404789040,1770562238392,-1431.43794938,0.00024887,2]
[404789041,1770562238402,-1431.43794938,0.00024887,2]
[404789042,1770562238411,-1431.43794938,0.00024887,2]
[404789043,1770562238421,-1431.43794938,0.00024887,2]
[404789044,1770562238430,-1431.43794938,0.00024887,2]
[404789045,1770562238440,-1431.43794938,0.00024887,2]
[404789046,1770562238450,-1431.43794938,0.00024887,2]
[404789047,1770562238460,-1431.43794938,0.00024887,2]
[404789048,1770562238470,-1431.43794938,0.00024887,2]
[404789049,1770562238480,-1431.43794938,0.00024887,2]
[404789050,1770562238489,-1431.43794938,0.00024887,2]
[404789051,1770562238499,-1431.43794938,0.00024887,2]
[404789052,1770562238508,-1431.43794938,0.00024887,2]
[404789053,1770562238518,-1431.43794938,0.00024887,2]
[404789054,1770562238529,-1431.43794938,0.00024887,2]
[404789055,1770562238538,-1431.43794938,0.00024887,2]
[404789056,1770562238548,-1431.43794938,0.00024887,2]
[404789057,1770562238562,-1431.43794938,0.00024887,2]
[404789058,1770562238571,-1431.43794938,0.00024887,2]
[404789059,1770562238581,-1431.43794938,0.00024887,2]
[404789060,1770562238591,-1431.43794938,0.00024887,2]
[404789061,1770562238600,-1431.43794938,0.00024887,2]
[404789062,1770562238610,-1431.43794938,0.00024887,2]
[404789063,1770562238619,-1431.43794938,0.00024887,2]
[404789064,1770562238629,-1431.43794938,0.00024887,2]
[404789065,1770562238638,-1431.43794938,0.00024887,2]
[404789066,1770562238648,-1431.43794938,0.00024887,2]
[404789067,1770562238657,-1431.43794938,0.00024887,2]
[404789068,1770562238667,-474.0,0.00024891,2]
[404789069,1770562238676,-7870.23,0.00024891,2]
[404789070,1770562238686,-500.0,0.00024892,2]
[404789071,1770562238695,-28531.62316116,0.00024893,2]
[404789072,1770562238708,-1741.48362425,0.00024893,2]
[404789073,1770562238727,-680.34762455,0.00024893,2]
[404789074,1770562239639,-600.58630183,0.00024893,2]
[404789075,1770562239653,-34225.12590099,0.00024893,2]
[404789076,1770562239666,-372.34049029,0.00024893,2]
[404789077,1770562239685,-1256.38003316,0.00024893,2]
[404789078,1770562239697,-434.00638525,0.00024893,2]
[404789079,1770562239713,-3756.37001003,0.00024893,2]
[404789080,1770562239838,-505.60542929,0.00024893,2]
[404789081,1770562239851,-1269.9727187,0.00024893,2]
[404789089,1770562244523,-214860.1211344,0.00024893,2]
[404789090,1770562244535,-3831.5601942,0.00024893,2]
[404789091,1770562244544,-474.0,0.00024946,2]
[404789092,1770562244553,-474.0,0.00025001,2]
[404789093,1770562244563,-200.0,0.00025024,2]
[404789094,1770562244572,-474.0,0.00025055,2]
[404789095,1770562244584,-474.0,0.0002511,2]
[404789096,1770562244594,-209.40437684,0.00025158,2]
[404789097,1770562244603,-474.0,0.00025165,2]
[404789098,1770562244613,-217.15233878,0.00025213,2]
[404789099,1770562244624,-474.0,0.0002522,2]
[404789100,1770562244634,-225.18697532,0.00025268,2]
[404789101,1770562244644,-474.0,0.00025275,2]
[404789102,1770562244654,-233.51889341,0.00025323,2]
[404789103,1770562244663,-474.0,0.00025329,2]
[404789104,1770562244672,-222.0,0.00025346,2]
[404789105,1770562244683,-242.15909246,0.00025378,2]
[404789106,1770562244694,-474.0,0.00025384,2]
[404789107,1770562244704,-251.11897888,0.00025433,2]
[404789108,1770562244714,-474.0,0.00025439,2]
[404789109,1770562244723,-260.4103811,0.00025488,2]
[404789110,1770562244733,-474.0,0.00025494,2]
[404789111,1770562244744,-270.0455652,0.00025543,2]
[404789112,1770562244755,-474.0,0.00025549,2]
[404789113,1770562244765,-280.03725112,0.00025598,2]
[404789114,1770562244775,-474.0,0.00025603,2]
[404789115,1770562244785,-290.39862941,0.00025653,2]
[404789116,1770562244794,-474.0,0.00025658,2]
[404789117,1770562244803,-301.1433787,0.00025708,2]
[404789118,1770562244812,-474.0,0.00025713,2]
[404789119,1770562244822,-474.0,0.00025768,2]
[404789120,1770562244832,-8811.1845,0.000258,2]
[404789121,1770562244842,-351.39902573,0.00025808,2]
[404789122,1770562244852,-420.0,0.00025814,2]
[404789123,1770562244863,-474.0,0.00025822,2]
[404789124,1770562244873,-482.15464793,0.00025877,2]
[404789125,1770562244882,-500.0,0.00025899,2]
[404789126,1770562244891,-500.0,0.00025899,2]
[404789127,1770562244901,-500.0,0.00025899,2]
[404789128,1770562244912,-500.0,0.00025899,2]
[404789129,1770562244922,-500.0,0.00025899,2]
[404789130,1770562244931,-500.0,0.00025899,2]
[404789131,1770562244941,-300.38849338,0.00025899,2]
[404789132,1770562244951,-2039.58769649,0.00025899,2]
[404789133,1770562244963,-168.28,0.00025908,2]
[404789134,1770562244974,-1680.0,0.00025933,2]
[404789135,1770562244984,-4004.80198829,0.00026,2]
[404789136,1770562244995,-1000.0,0.00026019,2]
[404789137,1770562245007,-150.0,0.0002636,2]
[404789138,1770562245016,-150.0,0.0002636,2]
[404789139,1770562245029,-150.0,0.0002636,2]
[404789140,1770562245039,-150.0,0.0002636,2]
[404789141,1770562245048,-500.0,0.0002636,2]
[404789142,1770562245058,-150.0,0.0002636,2]
[404789143,1770562245068,-500.0,0.0002636,2]
[404789144,1770562245077,-500.0,0.0002636,2]
[404789145,1770562245087,-500.0,0.0002636,2]
[404789146,1770562245097,-150.0,0.0002636,2]
[404789147,1770562245106,-500.0,0.0002636,2]
[404789148,1770562245116,-150.0,0.0002636,2]
[404789149,1770562245126,-150.0,0.00026415,2]
[404789150,1770562245136,-203.33737461,0.00026415,2]
[404789151,1770562245146,-150.0,0.00026415,2]
[404789152,1770562245156,-150.0,0.00026415,2]
[404789153,1770562245165,-500.0,0.00026415,2]
[404789154,1770562245174,-150.61707435,0.00026415,2]
[404789155,1770562245184,-500.0,0.00026415,2]
[404789156,1770562245193,-500.0,0.00026415,2]
[404789157,1770562245203,-500.0,0.00026415,2]
[404789158,1770562245212,-150.0,0.00026415,2]
[404789159,1770562245221,-500.0,0.00026415,2]
[404789160,1770562245231,-150.0,0.00026415,2]
[404789161,1770562245240,-150.0,0.0002647,2]
[404789162,1770562245249,-150.0,0.0002647,2]
[404789163,1770562245259,-150.0,0.0002647,2]
[404789164,1770562245268,-328.58375143,0.0002647,2]
[404789165,1770562245279,-500.0,0.0002647,2]
[404789166,1770562245291,-605.03210122,0.0002647,2]
[404789167,1770562245300,-500.0,0.0002647,2]
[404789168,1770562245310,-510.31139374,0.0002647,2]
[404789169,1770562245321,-160.40077851,0.0002647,2]
[404789170,1770562245331,-207.52591807,0.0002647,2]
[404789171,1770562245341,-176.47040213,0.00026524,2]
[404789173,1770562245352,-285.09596036,0.00026524,2]
[404789174,1770562245364,-228.97777935,0.00026524,2]
[404789175,1770562245374,-500.0,0.00026524,2]
[404789176,1770562245385,-500.0,0.00026524,2]
[404789177,1770562245395,-500.0,0.00026579,2]
[404789178,1770562245407,-615.22197505,0.00026579,2]
[404789179,1770562245418,-500.0,0.00026634,2]
[404789180,1770562245428,-253.22863447,0.00026689,2]
[404789181,1770562245439,-155.0,0.00026799,2]
[404789182,1770562245450,-276.58,0.0002684,2]
[404789183,1770562245460,-166.66,0.0002691,2]
[404789184,1770562245471,-9801.15185993,0.00026933,2]
[404789185,1770562245480,-33403.74823896,0.00026935,2]
[404789186,1770562245490,-23329.71347784,0.00027,2]
[404789187,1770562245499,-397.0,0.00027001,2]
[404789188,1770562245510,-150.0,0.00027005,2]
[404789189,1770562245521,-397.0,0.00027082,2]
[404789190,1770562245534,-317.65442763,0.00027122,2]
[404789191,1770562245553,-150.0,0.00027369,2]
[404789192,1770562245562,-1000.0,0.00027397,20]
[404789193,1770562245572,-300.0,0.00027397,2]
[404789194,1770562245582,-151.0,0.00027403,7]
[404789195,1770562245594,-152.587734,0.00027403,7]
[404789196,1770562245603,-616.392,0.00027403,2]